bitfinex-derivatives/quotes_BTCF0:USTF0_20250718
["timestamp","ask_amount","ask_price","bid_price","bid_amount"]
[1752799464126,0.1668623,119770.0,119760.0,0.47631512]
[1752799464324,0.7644223,119770.0,119760.0,0.51497622]
[1752799464522,0.88972463,119770.0,119760.0,0.47325792]
[1752799464728,0.88972463,119770.0,119760.0,0.22600632]
[1752799465128,1.25052463,119770.0,119760.0,0.12171]
[1752799465432,1.25052463,119770.0,119760.0,0.2885862]
[1752799465630,0.88972463,119770.0,119760.0,0.3689662]
[1752799465931,0.88972463,119770.0,119760.0,0.3809662]
[1752799466431,1.25052463,119770.0,119760.0,0.3809662]
[1752799467130,0.88972463,119770.0,119760.0,0.3809662]
[1752799467324,1.25052463,119770.0,119760.0,0.3809662]
[1752799467529,0.88972463,119770.0,119760.0,0.3909662]
[1752799468335,0.88972463,119770.0,119760.0,0.69228425]
[1752799468733,0.88972463,119770.0,119760.0,0.3909662]
[1752799471535,0.88972463,119770.0,119760.0,1.05308425]
[1752799471931,0.88972463,119770.0,119760.0,0.69228425]
[1752799472133,0.72242233,119770.0,119760.0,1.05308425]
[1752799472530,0.88928473,119770.0,119760.0,1.05308425]
[1752799472838,0.88928473,119770.0,119760.0,0.7517662]
[1752799473035,0.88928473,119770.0,119760.0,1.05308425]
[1752799473539,0.88928473,119770.0,119760.0,1.15738057]
[1752799474433,0.88928473,119770.0,119760.0,1.05308425]
[1752799475040,0.72242233,119770.0,119760.0,1.05308425]
[1752799475241,0.88928473,119770.0,119760.0,1.15738057]
[1752799475441,0.88928473,119770.0,119760.0,0.85606252]
[1752799475836,0.88928473,119770.0,119760.0,1.15738057]
[1752799476544,0.72294233,119770.0,119760.0,1.15738057]
[1752799476738,0.59764,119770.0,119760.0,1.15738057]
[1752799477041,0.48494494,119770.0,119760.0,1.15738057]
[1752799477242,0.65180734,119770.0,119760.0,0.7517662]
[1752799477436,0.65180734,119770.0,119760.0,1.05308425]
[1752799477640,0.65180734,119770.0,119760.0,1.15709866]
[1752799478037,0.65180734,119770.0,119760.0,0.85578061]
[1752799478243,0.65456734,119770.0,119760.0,0.85578061]
[1752799478946,0.66575734,119770.0,119760.0,0.49498061]
[1752799479646,0.66145734,119770.0,119760.0,0.49498061]
[1752799479844,1.32959539,119770.0,119760.0,0.49498061]
[1752799480146,1.45455105,119770.0,119760.0,0.22409]
[1752799480347,1.46282559,119770.0,119760.0,0.14371]
[1752799481844,1.153233,119770.0,119760.0,0.3105857]
[1752799482044,1.45455105,119770.0,119760.0,0.41460011]
[1752799482349,1.153233,119770.0,119760.0,0.41460011]
[1752799482652,1.153233,119770.0,119760.0,0.49613011]
[1752799484353,1.153233,119770.0,119760.0,0.3921157]
[1752799484854,1.147213,119770.0,119760.0,0.3921157]
[1752799485350,0.72331566,119770.0,119760.0,1.12858068]
[1752799485555,0.89017746,119770.0,119760.0,0.79744816]
[1752799485757,0.72331566,119770.0,119760.0,0.79744816]
[1752799486654,0.72331566,119770.0,119760.0,0.49613011]
[1752799486854,0.72331566,119770.0,119760.0,0.79744816]
[1752799487858,0.89017746,119770.0,119760.0,0.49613011]
[1752799488058,0.72331566,119770.0,119760.0,0.79744816]
[1752799488558,0.89017746,119770.0,119760.0,0.79744816]
[1752799488855,0.72331566,119770.0,119760.0,0.79744816]
[1752799489055,0.72331566,119770.0,119760.0,1.15824816]
[1752799489260,0.72331566,119770.0,119760.0,1.05423375]
[1752799490061,0.12495566,119770.0,119760.0,1.05423375]
[1752799490261,0.2182055,119790.0,119780.0,0.3732279]
[1752799490461,0.8203255,119790.0,119780.0,0.3732279]
[1752799490663,0.73680232,119790.0,119780.0,0.74891467]
[1752799490864,0.61177,119790.0,119780.0,0.74891467]
[1752799491064,0.1764804,119800.0,119790.0,0.3732139]
[1752799491364,0.73726222,119800.0,119790.0,0.74889854]
[1752799491661,0.72761222,119800.0,119790.0,0.81722793]
[1752799491856,0.5956112,119820.0,119810.0,0.2483361]
[1752799492063,1.1982112,119820.0,119810.0,0.43266391]
[1752799492257,1.32358803,119820.0,119810.0,0.43266391]
[1752799493261,0.72098803,119820.0,119810.0,0.43266391]
[1752799493462,1.28488833,119820.0,119810.0,0.43266391]
[1752799494265,1.11808743,119820.0,119810.0,0.43266391]
[1752799494862,0.51848743,119820.0,119810.0,0.3731861]
[1752799495062,0.32447963,119820.0,119810.0,0.3731861]
[1752799495257,0.92691963,119820.0,119810.0,0.3731861]
[1752799495566,0.92687963,119820.0,119810.0,0.41774661]
[1752799495766,0.92687963,119820.0,119810.0,0.3731861]
[1752799495962,1.28467963,119820.0,119810.0,0.41774691]
[1752799496169,1.28767963,119820.0,119810.0,0.41774691]
[1752799496363,0.92687963,119820.0,119810.0,0.41774691]
[1752799496572,0.92719963,119820.0,119810.0,0.41774691]
[1752799497170,0.92719963,119820.0,119810.0,0.3731861]
[1752799497471,0.92719963,119820.0,119810.0,0.4177329]
[1752799497670,0.92419963,119820.0,119810.0,0.4177329]
[1752799497866,0.92719963,119820.0,119810.0,0.4177329]
[1752799498268,0.92719963,119820.0,119810.0,0.3731861]
[1752799498469,0.92719963,119820.0,119810.0,0.41772822]
[1752799498769,0.92719963,119820.0,119810.0,0.77852822]
[1752799498770,0.13137683,119820.0,119810.0,0.77852822]
[1752799498973,0.13137683,119820.0,119810.0,1.07984627]
[1752799499171,0.29816903,119820.0,119810.0,0.7339861]
[1752799499563,0.30092903,119820.0,119810.0,1.03530415]
[1752799500163,0.30092903,119820.0,119810.0,0.7339861]
[1752799500365,0.29816903,119820.0,119810.0,0.79346391]
[1752799500569,0.30781903,119820.0,119810.0,0.3731861]
[1752799500767,0.75502683,119820.0,119810.0,0.41771759]
[1752799501073,0.92181903,119820.0,119810.0,0.41771452]
[1752799501567,0.92611903,119820.0,119810.0,0.41771452]
[1752799501772,1.28863903,119820.0,119810.0,0.25090842]
[1752799501965,1.58995708,119820.0,119810.0,0.04452842]
[1752799502269,1.58995708,119820.0,119810.0,0.06820134]
[1752799502270,1.75956509,119820.0,119810.0,0.06820134]
[1752799502474,1.45824704,119820.0,119810.0,0.02969292]
[1752799502673,2.00956509,119820.0,119810.0,0.02969292]
[1752799502865,2.00956509,119820.0,119810.0,0.02227415]
[1752799503170,2.31088314,119820.0,119810.0,0.02227415]
[1752799503475,2.01608509,119820.0,119810.0,0.02227415]
[1752799504575,2.01608509,119820.0,119800.0,0.02969292]
[1752799504576,0.1668061,119810.0,119800.0,0.02969292]
[1752799504768,1.6819661,119810.0,119800.0,0.02969292]
[1752799504966,2.32650241,119810.0,119800.0,0.02969292]
[1752799505772,2.95042241,119810.0,119800.0,0.03269292]
[1752799505972,2.95042241,119810.0,119800.0,0.03469292]
[1752799506372,2.59759949,119810.0,119800.0,0.03469292]
[1752799506772,2.95042241,119810.0,119800.0,0.03469292]
[1752799506973,2.95042241,119810.0,119800.0,0.03269292]
[1752799507178,2.95482241,119810.0,119800.0,0.02969292]
[1752799507375,2.95782241,119810.0,119800.0,0.02969292]
[1752799508071,2.95782241,119810.0,119800.0,0.0519808]
[1752799508370,2.79088641,119810.0,119800.0,0.02969292]
[1752799508876,2.43810349,119810.0,119800.0,0.15534292]
[1752799509169,1.81274349,119810.0,119800.0,0.15534292]
[1752799509374,2.43906349,119810.0,119800.0,0.15534292]
[1752799509967,2.79188641,119810.0,119800.0,0.15534292]
[1752799510169,2.79188641,119810.0,119800.0,0.13232292]
[1752799510377,2.79188641,119810.0,119800.0,0.08378292]
[1752799510576,2.43906349,119810.0,119800.0,0.02969292]
[1752799510876,2.44318349,119810.0,119800.0,0.02969292]
[1752799511077,2.79600641,119810.0,119800.0,0.02969292]
[1752799511570,2.96294241,119810.0,119800.0,0.02969292]
[1752799512567,3.21294241,119810.0,119800.0,0.05198997]
[1752799512977,3.21294241,119810.0,119800.0,0.02229705]
[1752799513174,2.86011949,119810.0,119800.0,0.02229705]
[1752799513376,3.21294241,119810.0,119800.0,0.02229705]
[1752799514273,2.96294241,119810.0,119800.0,0.02229705]
[1752799514880,2.96294241,119810.0,119800.0,0.00038725]
[1752799515080,0.166834,119790.0,119780.0,0.02969292]
[1752799515273,1.87293692,119790.0,119780.0,0.02969292]
[1752799515474,1.99791673,119790.0,119780.0,0.02969292]
[1752799516277,1.99791673,119790.0,119780.0,0.03869292]
[1752799516480,1.99791673,119790.0,119780.0,0.04669292]
[1752799517981,1.99791673,119790.0,119780.0,0.14932292]
[1752799518382,1.64509381,119790.0,119780.0,0.14932292]
[1752799518683,1.64429381,119790.0,119780.0,0.17234292]
[1752799519185,1.64469381,119790.0,119780.0,0.17234292]
[1752799519484,1.99751673,119790.0,119780.0,0.17234292]
[1752799520180,1.01341381,119790.0,119780.0,0.25201292]
[1752799520485,1.28329381,119790.0,119780.0,0.41886082]
[1752799520875,1.28329381,119790.0,119780.0,0.3891679]
[1752799521777,0.29181381,119790.0,119780.0,0.3891679]
[1752799521976,0.12497981,119790.0,119780.0,0.74199082]
[1752799522179,0.75493981,119790.0,119780.0,0.74199082]
[1752799522387,0.12497981,119790.0,119780.0,0.78656669]
[1752799522691,0.75529981,119790.0,119780.0,0.43374377]
[1752799523077,0.92213381,119790.0,119780.0,0.43374377]
[1752799523481,0.92213381,119790.0,119780.0,0.78656669]
[1752799524186,0.92213381,119790.0,119780.0,1.14736669]
[1752799524387,0.12497981,119790.0,119780.0,1.10279082]
[1752799524588,0.16682,119800.0,119790.0,0.4555658]
[1752799524788,0.79922,119800.0,119790.0,1.25548599]
[1752799525083,0.92479633,119800.0,119790.0,1.27037423]
[1752799525299,0.92487633,119800.0,119790.0,1.27037423]
[1752799525679,0.12557633,119800.0,119790.0,1.21089642]
[1752799525887,0.2085174,119810.0,119800.0,0.37214]
[1752799526087,0.8407974,119810.0,119800.0,1.14521049]
[1752799526388,0.8407974,119810.0,119800.0,0.43158757]
[1752799526788,0.8407974,119810.0,119800.0,0.37214]
[1752799527088,0.8407974,119810.0,119800.0,0.20532]
[1752799527286,0.8467974,119810.0,119800.0,0.37214]
[1752799528288,0.8479574,119810.0,119800.0,0.37214]
[1752799528480,0.8479574,119810.0,119800.0,0.41674502]
[1752799528688,0.8479574,119810.0,119800.0,0.37214]
[1752799529390,0.8479574,119810.0,119800.0,0.43158757]
[1752799529884,0.8062558,119810.0,119800.0,0.43158757]
[1752799530185,0.6396,119810.0,119800.0,1.14521049]
[1752799530490,0.6396,119810.0,119800.0,0.80085738]
[1752799530788,0.8064062,119810.0,119800.0,1.1536803]
[1752799530989,0.8064062,119810.0,119800.0,0.80085738]
[1752799531190,0.8064062,119810.0,119800.0,1.1536803]
[1752799532190,0.8058462,119810.0,119800.0,1.1536803]
[1752799533887,0.8058462,119810.0,119800.0,0.9215203]
[1752799534091,0.8058462,119810.0,119800.0,0.9333503]
[1752799534293,0.8058462,119810.0,119800.0,0.99852099]
[1752799534593,0.1728062,119810.0,119800.0,0.99852099]
[1752799534792,0.006,119810.0,119800.0,0.99852099]
[1752799535093,0.006,119810.0,119800.0,1.7476236]
[1752799535292,0.003,119810.0,119800.0,1.7476236]
[1752799535587,0.7994725,119820.0,119810.0,0.2097061]
[1752799535793,0.63268,119820.0,119810.0,0.95261646]
[1752799535992,0.63268,119820.0,119810.0,1.07826646]
[1752799536187,0.4397227,119830.0,119820.0,0.3490922]
[1752799536387,1.0754427,119830.0,119820.0,0.74715724]
[1752799536583,1.20022242,119830.0,119820.0,0.74715724]
[1752799536790,1.20022242,119830.0,119820.0,0.44640073]
[1752799537495,1.20322242,119830.0,119820.0,0.44640073]
[1752799538093,1.16152582,119830.0,119820.0,0.44640073]
[1752799538495,1.16452582,119830.0,119820.0,0.44640073]
[1752799539291,1.01411952,119830.0,119820.0,0.44640073]
[1752799539893,1.06247952,119830.0,119820.0,0.44640073]
[1752799540088,1.12071952,119830.0,119820.0,0.44640073]
[1752799540294,1.12071952,119830.0,119820.0,0.40182761]
[1752799541486,1.22274044,119830.0,119820.0,0.14417541]
[1752799541684,1.85598044,119830.0,119820.0,0.02971541]
[1752799541889,0.2469523,119820.0,119810.0,0.14628853]
[1752799542085,0.7376023,119820.0,119810.0,0.26852161]
[1752799542285,1.49670177,119820.0,119810.0,0.47353161]
[1752799542693,1.49670177,119820.0,119810.0,0.30672541]
[1752799542889,1.49670177,119820.0,119810.0,0.10171541]
[1752799543094,1.49970177,119820.0,119810.0,0.26852161]
[1752799543489,1.50270177,119820.0,119810.0,0.26852161]
[1752799545100,1.50270177,119820.0,119810.0,0.19652161]
[1752799546098,1.51758177,119820.0,119810.0,0.37722473]
[1752799546295,1.51758177,119820.0,119810.0,0.35465473]
[1752799547498,1.51758177,119820.0,119810.0,0.32493932]
[1752799547898,1.51758177,119820.0,119810.0,0.41638932]
[1752799548200,0.86950177,119820.0,119810.0,0.41638932]
[1752799548397,1.51898177,119820.0,119810.0,0.41638932]
[1752799548694,1.15818177,119820.0,119810.0,0.41638932]
[1752799549701,1.51898177,119820.0,119810.0,0.41638932]
[1752799550598,1.15818177,119820.0,119810.0,0.41638932]
[1752799550901,1.51898177,119820.0,119810.0,0.41638932]
[1752799552098,1.51898177,119820.0,119810.0,0.15813312]
[1752799552294,1.87151269,119820.0,119810.0,0.04457312]
[1752799552502,1.51898177,119820.0,119810.0,0.21137942]
[1752799552698,1.87151269,119820.0,119810.0,0.21137942]
[1752799552902,1.51898177,119820.0,119810.0,0.21137942]
[1752799553404,1.51898177,119820.0,119810.0,0.31305942]
[1752799553604,1.51898177,119820.0,119810.0,0.41638942]
[1752799554403,0.34190947,119820.0,119810.0,0.41638942]
[1752799554596,0.97369947,119820.0,119810.0,0.72434722]
[1752799554906,0.86709947,119820.0,119810.0,0.3718163]
[1752799555108,1.16374187,119820.0,119810.0,0.41644963]
[1752799555403,1.52690187,119820.0,119810.0,0.32499963]
[1752799555702,1.52690187,119820.0,119810.0,0.27967963]
[1752799556008,1.52690187,119820.0,119810.0,0.32499963]
[1752799558105,1.52690187,119820.0,119810.0,0.34756963]
[1752799559011,1.52690187,119820.0,119810.0,0.37861963]
[1752799559208,1.52690187,119820.0,119810.0,0.41644963]
[1752799559905,0.50870187,119820.0,119810.0,0.41644963]
[1752799560312,0.82038947,119820.0,119810.0,0.41644963]
[1752799560506,0.98718187,119820.0,119810.0,0.71738193]
[1752799560707,1.03525187,119820.0,119810.0,0.71738193]
[1752799560903,0.42721187,119820.0,119810.0,0.71738193]
[1752799561209,0.14309947,119820.0,119810.0,0.71738193]
[1752799561414,0.13189947,119820.0,119810.0,0.73220371]
[1752799561610,0.006,119820.0,119810.0,1.50993171]
[1752799562107,0.66284,119820.0,119810.0,0.79207141]
[1752799562514,0.66284,119820.0,119810.0,1.09300371]
[1752799562808,0.66284,119820.0,119810.0,1.10791519]
[1752799563014,0.66252,119820.0,119810.0,1.10791519]
[1752799563811,0.006,119820.0,119810.0,1.10791519]
[1752799564014,0.006,119820.0,119810.0,1.52484319]
[1752799564211,0.006,119820.0,119810.0,1.27484319]
[1752799564412,0.2501572,119840.0,119830.0,0.1667785]
[1752799564607,0.7792541,119850.0,119840.0,0.1667646]
[1752799564806,0.12852,119850.0,119840.0,0.38026662]
[1752799565012,0.12489881,119850.0,119840.0,0.38026662]
[1752799565210,0.78365881,119850.0,119840.0,0.44788896]
[1752799565407,0.78365881,119850.0,119840.0,0.80868896]
[1752799565615,0.95040951,119850.0,119840.0,0.80868896]
[1752799565816,0.12489881,119850.0,119840.0,0.80868896]
[1752799566011,0.13869,119860.0,119850.0,0.3491907]
[1752799566318,1.16364978,119860.0,119850.0,0.42451927]
[1752799566714,1.82538208,119860.0,119850.0,0.05275857]
[1752799566916,1.87694449,119860.0,119850.0,0.05275857]
[1752799567220,1.87694449,119860.0,119850.0,0.01708812]
[1752799567421,1.87694449,119860.0,119830.0,0.16875567]
[1752799567422,0.3612646,119840.0,119830.0,0.04450567]
[1752799567616,1.43535931,119840.0,119830.0,0.04450567]
[1752799567815,1.56118114,119840.0,119830.0,0.04450567]
[1752799568020,1.20868643,119840.0,119830.0,0.04450567]
[1752799568221,0.3587024,119820.0,119810.0,0.4922845]
[1752799568422,1.34371558,119820.0,119810.0,0.4884135]
[1752799568720,1.44489731,119820.0,119810.0,0.49102148]
[1752799568920,1.27810491,119820.0,119810.0,0.49102148]
[1752799569216,1.01650021,119820.0,119810.0,0.49102148]
[1752799569813,1.01650021,119820.0,119810.0,0.4884135]
[1752799570016,1.01650021,119820.0,119810.0,0.49102149]
[1752799570214,0.34722021,119820.0,119810.0,0.49102149]
[1752799570416,1.03514021,119820.0,119810.0,0.49102149]
[1752799571021,1.03514021,119820.0,119810.0,0.44932169]
[1752799571218,0.208483,119830.0,119820.0,0.3508526]
[1752799571417,0.1781447,119840.0,119830.0,0.3738487]
[1752799571723,0.97912712,119840.0,119830.0,0.72634341]
[1752799572223,0.29168712,119840.0,119830.0,0.7346487]
[1752799572413,1.33980712,119840.0,119830.0,0.3738487]
[1752799572617,1.33980712,119840.0,119830.0,0.43312959]
[1752799572919,1.00603712,119840.0,119830.0,0.43312959]
[1752799573117,1.00603712,119840.0,119830.0,0.26635089]
[1752799573324,1.74144183,119840.0,119830.0,0.19725089]
[1752799573514,1.74144183,119840.0,119830.0,0.32889949]
[1752799573825,0.83926242,119840.0,119830.0,0.79392949]
[1752799574024,0.81223242,119840.0,119830.0,1.08714331]
[1752799574224,0.81483242,119840.0,119830.0,0.7346486]
[1752799574719,0.99296712,119840.0,119830.0,0.7346486]
[1752799575022,0.99296712,119840.0,119830.0,0.3738486]
[1752799575023,1.36942712,119840.0,119830.0,0.3738486]
[1752799575212,1.36942712,119840.0,119830.0,0.44796539]
[1752799575516,1.37921712,119840.0,119830.0,0.44796539]
[1752799575716,1.39153712,119840.0,119830.0,0.3738486]
[1752799575917,1.39153712,119840.0,119830.0,0.26634397]
[1752799576113,1.39153712,119840.0,119830.0,0.43312267]
[1752799577223,1.39153712,119840.0,119830.0,0.3738487]
[1752799577413,1.21498242,119840.0,119830.0,0.3738487]
[1752799577616,1.38386712,119840.0,119830.0,0.3738487]
[1752799578118,0.69182712,119840.0,119830.0,0.43312267]
[1752799578322,0.33102712,119840.0,119830.0,0.43312267]
[1752799578522,1.03633712,119840.0,119830.0,0.43312267]
[1752799578915,0.86957242,119840.0,119830.0,0.43312267]
[1752799579120,1.22058242,119840.0,119830.0,0.43312267]
[1752799579320,0.84746242,119840.0,119830.0,0.4616854]
[1752799579519,0.15194242,119840.0,119830.0,0.4616854]
[1752799579723,0.83176242,119840.0,119830.0,0.4616854]
[1752799579916,1.15408,119850.0,119840.0,0.1667647]
[1752799580225,1.9745003,119850.0,119840.0,0.4616714]
[1752799580423,1.9745003,119850.0,119840.0,0.40239743]
[1752799580620,1.9745003,119850.0,119840.0,0.75489214]
[1752799581129,1.9751003,119850.0,119840.0,0.75489214]
[1752799582225,2.3359003,119850.0,119840.0,0.75489214]
[1752799582518,0.8211003,119850.0,119840.0,0.81416611]
[1752799583124,0.8199403,119850.0,119840.0,0.4616714]
[1752799583620,1.1807403,119850.0,119840.0,0.4616714]
[1752799584526,0.8199403,119850.0,119840.0,0.4616714]
[1752799584723,0.8199403,119850.0,119840.0,1.17496611]
[1752799584928,0.8199403,119850.0,119840.0,1.11569214]
[1752799585826,0.8199403,119850.0,119840.0,0.76319743]
[1752799586028,0.8199403,119850.0,119840.0,1.11569214]
[1752799586221,2.11106119,119850.0,119840.0,0.13140273]
[1752799586430,2.4635559,119850.0,119840.0,0.06579887]
[1752799586821,2.8804359,119850.0,119840.0,0.06579887]
[1752799587325,2.8804359,119850.0,119840.0,0.00645273]
[1752799587730,2.17544648,119850.0,119840.0,0.00645273]
[1752799587924,2.8804359,119850.0,119840.0,0.00645273]
[1752799588930,2.8804359,119850.0,119840.0,0.06579887]
[1752799589427,2.8804359,119850.0,119840.0,0.00645273]
[1752799590330,2.8804359,119850.0,119840.0,0.00357273]
[1752799590729,2.8804359,119850.0,119840.0,0.00242273]
[1752799592134,2.8804359,119850.0,119840.0,0.06176887]
[1752799592524,2.8804359,119850.0,119840.0,0.00242273]
[1752799592720,2.8804359,119850.0,119840.0,0.04702279]
[1752799593921,2.8804359,119850.0,119840.0,9e-08]
[1752799594127,0.1667784,119830.0,119820.0,0.05934614]
[1752799594328,3.12485693,119830.0,119820.0,0.05934614]
[1752799594632,3.41746345,119830.0,119820.0,0.05934614]
[1752799595028,3.66746345,119830.0,119820.0,0.05934614]
[1752799595237,0.1668061,119810.0,119800.0,0.05934614]
[1752799595536,2.09631809,119810.0,119800.0,0.05934614]
[1752799595832,0.1668201,119800.0,119790.0,0.18519614]
[1752799596032,0.88011481,119800.0,119790.0,0.18519614]
[1752799596233,1.0048344,119800.0,119790.0,0.18519614]
[1752799596424,0.65233969,119800.0,119790.0,0.18519614]
[1752799596625,0.65233969,119800.0,119790.0,0.43325014]
[1752799597533,0.65233969,119800.0,119790.0,0.27941614]
[1752799598234,0.65243969,119800.0,119790.0,0.27941614]
[1752799598436,1.0049344,119800.0,119790.0,0.29041614]
[1752799599232,0.65243969,119800.0,119790.0,0.29041614]
[1752799600039,0.65243969,119800.0,119790.0,0.23107]
[1752799600335,1.0054244,119800.0,119790.0,0.14958]
[1752799600637,1.0054244,119800.0,119790.0,0.20892614]
[1752799600835,0.65292969,119800.0,119790.0,0.20892614]
[1752799601029,1.0054244,119800.0,119790.0,0.20892614]
[1752799601531,0.65292969,119800.0,119790.0,0.20892614]
[1752799601835,1.0054244,119800.0,119790.0,0.20892614]
[1752799603033,1.0054244,119800.0,119790.0,0.18618614]
[1752799603534,1.0054244,119800.0,119790.0,0.12684]
[1752799603734,1.0054244,119800.0,119790.0,0.024]
[1752799603936,0.65292969,119800.0,119790.0,0.024]
[1752799604141,1.0054244,119800.0,119790.0,0.08334614]
[1752799604534,1.0054244,119800.0,119790.0,0.18670614]
[1752799605034,1.0054244,119800.0,119790.0,0.024]
[1752799605435,1.0054244,119800.0,119790.0,0.09811679]
[1752799605835,1.0054244,119800.0,119790.0,0.12296962]
[1752799606145,1.0054244,119800.0,119790.0,0.15221283]
[1752799606634,1.0054244,119800.0,119790.0,0.04885283]
[1752799607338,1.0054244,119800.0,119790.0,0.04862283]
[1752799607339,1.35791911,119800.0,119790.0,0.04862283]
[1752799607538,1.52487111,119800.0,119790.0,0.04862283]
[1752799607737,1.52487111,119800.0,119790.0,0.08435997]
[1752799608032,0.166848,119780.0,119770.0,0.17747679]
[1752799608237,1.90601769,119780.0,119770.0,0.07411679]
[1752799608438,2.03060916,119780.0,119770.0,0.07411679]
[1752799608638,2.07569418,119780.0,119770.0,0.07411679]
[1752799608842,2.14314414,119780.0,119770.0,0.07411679]
[1752799609438,2.14314414,119780.0,119770.0,0.17747679]
[1752799609937,1.78234414,119780.0,119770.0,0.34433879]
[1752799610235,1.07218414,119780.0,119770.0,0.336052]
[1752799610538,1.42920943,119780.0,119770.0,0.49386518]
[1752799610737,0.72068943,119780.0,119770.0,0.49386518]
[1752799610935,0.65323947,119780.0,119770.0,0.49386518]
[1752799611237,1.36111947,119780.0,119770.0,0.49386518]
[1752799613338,0.65323947,119780.0,119770.0,0.49386518]
[1752799613536,1.35899947,119780.0,119770.0,0.49386518]
[1752799613732,0.12559147,119780.0,119770.0,0.84635989]
[1752799613937,0.83163147,119780.0,119770.0,0.84635989]
[1752799614737,0.83163147,119780.0,119770.0,0.49386518]
[1752799614934,0.12559147,119780.0,119770.0,1.20715989]
[1752799615133,0.4024993,119820.0,119800.0,0.07425]
[1752799615334,1.2792193,119820.0,119810.0,0.4501104]
[1752799615638,1.40524833,119820.0,119810.0,0.4501104]
[1752799616234,0.69532833,119820.0,119810.0,0.4501104]
[1752799616440,1.40804833,119820.0,119810.0,0.4501104]
[1752799616641,1.41904833,119820.0,119810.0,0.4511104]
[1752799617136,1.42604833,119820.0,119810.0,0.4511104]
[1752799617333,1.06524833,119820.0,119810.0,0.4511104]
[1752799617538,1.05424833,119820.0,119810.0,0.4501104]
[1752799617738,1.06224833,119820.0,119810.0,0.4511104]
[1752799617938,1.06824833,119820.0,119810.0,0.4511104]
[1752799618941,1.02654903,119820.0,119810.0,0.4511104]
[1752799619944,1.02654903,119820.0,119810.0,0.47390855]
[1752799620840,1.38734903,119820.0,119810.0,0.47390855]
[1752799621539,0.14702903,119820.0,119810.0,0.75218916]
[1752799621843,1.02330133,119820.0,119810.0,0.47390855]
[1752799622643,0.95570247,119820.0,119810.0,0.47390855]
[1752799625443,0.95570247,119820.0,119810.0,0.43627252]
[1752799626046,0.95570247,119820.0,119810.0,0.3768963]
[1752799626238,0.95570247,119820.0,119810.0,0.43626935]
[1752799626440,0.78891017,119820.0,119810.0,0.43626935]
[1752799626636,0.95570247,119820.0,119810.0,0.43626935]
[1752799628545,0.78891017,119820.0,119810.0,0.43626935]
[1752799629039,0.78555017,119820.0,119810.0,0.79706935]
[1752799629945,0.95234247,119820.0,119810.0,0.79706935]
[1752799630345,0.95234247,119820.0,119810.0,0.7376963]
[1752799630546,0.95245247,119820.0,119810.0,0.7376963]
[1752799631943,0.96007247,119820.0,119810.0,0.7376963]
[1752799632149,1.67336718,119820.0,119810.0,0.3768963]
[1752799632443,1.67819718,119820.0,119810.0,0.3768963]
[1752799632644,1.67819718,119820.0,119810.0,0.3369963]
[1752799632847,1.67819718,119820.0,119810.0,0.2711663]
[1752799633048,1.67819718,119820.0,119810.0,0.001]
[1752799633350,1.67819718,119820.0,119810.0,0.04068458]
[1752799633549,1.32570247,119820.0,119810.0,0.04068458]
[1752799633743,1.67819718,119820.0,119810.0,0.04068458]
[1752799633940,1.67819718,119820.0,119810.0,0.20749078]
[1752799634140,1.67819718,119820.0,119810.0,0.04068458]
[1752799634947,1.84512519,119820.0,119810.0,0.02968647]
[1752799635346,2.09512519,119820.0,119810.0,0.02968647]
[1752799635549,2.09512519,119820.0,119810.0,0.05195684]
[1752799636157,1.38900519,119820.0,119810.0,0.05195684]
[1752799636364,2.09400519,119820.0,119810.0,0.02968647]
[1752799637053,1.74151048,119820.0,119810.0,0.02968647]
[1752799637252,2.09400519,119820.0,119810.0,0.02968647]
[1752799637656,0.083408,119810.0,119790.0,0.27464985]
[1752799637866,1.58427491,119800.0,119790.0,0.09604305]
[1752799638253,1.70980474,119800.0,119790.0,0.20360305]
[1752799638956,2.07060474,119800.0,119790.0,0.05937305]
[1752799639260,0.1668341,119790.0,119780.0,0.43851816]
[1752799639460,0.88012881,119790.0,119780.0,0.51364816]
[1752799639657,0.65206907,119790.0,119780.0,0.51364816]
[1752799639962,0.65206907,119790.0,119780.0,0.44558105]
[1752799640266,0.65206907,119790.0,119780.0,0.386208]
[1752799640469,0.29126907,119790.0,119780.0,0.396208]
[1752799640858,0.65206907,119790.0,119780.0,0.396208]
[1752799641053,0.65606907,119790.0,119780.0,0.392208]
[1752799641562,0.65606907,119790.0,119780.0,0.22536]
[1752799641957,0.65606907,119790.0,119780.0,0.15023]
[1752799641958,1.00856378,119790.0,119780.0,0.15023]
[1752799642262,1.00856378,119790.0,119780.0,0.14423]
[1752799642763,1.01674272,119790.0,119780.0,0.13186]
[1752799642957,0.66424801,119790.0,119780.0,0.10756]
[1752799643160,1.01674272,119790.0,119780.0,0.10756]
[1752799643967,1.01674272,119790.0,119780.0,0.13726057]
[1752799645167,1.01674272,119790.0,119780.0,0.1595216]
[1752799645567,0.66424801,119790.0,119780.0,0.0519616]
[1752799645963,0.66424801,119790.0,119780.0,0.16156057]
[1752799645964,1.01674272,119790.0,119780.0,0.16156057]
[1752799646164,1.01674272,119790.0,119780.0,0.18382005]
[1752799646364,1.01674272,119790.0,119780.0,0.15952005]
[1752799647072,1.01674272,119790.0,119780.0,0.02225948]
[1752799648765,1.01674272,119790.0,119780.0,0.12981948]
[1752799649362,1.01674272,119790.0,119780.0,0.18382005]
[1752799649363,0.30344801,119790.0,119780.0,0.18382005]
[1752799649668,0.29526907,119790.0,119780.0,0.76840328]
[1752799649867,0.99138907,119790.0,119780.0,0.73870271]
[1752799650564,0.12843497,119790.0,119780.0,1.26647071]
[1752799650866,0.4024993,119820.0,119810.0,0.2097362]
[1752799650867,0.2919052,119820.0,119810.0,0.2097362]
[1752799651066,0.9871452,119820.0,119810.0,0.40839742]
[1752799651370,1.111651,119820.0,119810.0,0.40839742]
[1752799652169,1.472451,119820.0,119810.0,0.24159122]
[1752799652377,1.476451,119820.0,119810.0,0.21936]
[1752799652569,1.48492806,119820.0,119810.0,0.21936]
[1752799652768,1.83742277,119820.0,119810.0,0.14423]
[1752799652961,1.84542277,119820.0,119810.0,0.14423]
[1752799653268,1.83694571,119820.0,119810.0,0.14423]
[1752799653669,1.484451,119820.0,119810.0,0.21936]
[1752799653872,1.480451,119820.0,119810.0,0.24159122]
[1752799654075,0.791611,119820.0,119810.0,0.40839742]
[1752799654372,1.124851,119820.0,119810.0,0.40839742]
[1752799655171,1.485651,119820.0,119810.0,0.27123285]
[1752799656368,1.485651,119820.0,119810.0,0.24900163]
[1752799656572,1.485651,119820.0,119810.0,0.2712487]
[1752799656772,1.83814571,119820.0,119810.0,0.2712487]
[1752799657073,1.84814571,119820.0,119810.0,0.2712487]
[1752799657373,1.495651,119820.0,119810.0,0.2712487]
[1752799658074,1.491651,119820.0,119810.0,0.4380549]
[1752799658465,1.130851,119820.0,119810.0,0.41580783]
[1752799658668,1.130851,119820.0,119810.0,0.4380622]
[1752799658872,1.130851,119820.0,119810.0,0.24900163]
[1752799659273,1.491651,119820.0,119810.0,0.27126176]
[1752799659778,1.84814571,119820.0,119810.0,0.27126176]
[1752799660277,1.84814571,119820.0,119810.0,0.24900163]
[1752799661277,1.495651,119820.0,119810.0,0.24900163]